bitfinex/quotes_SOLUSD_20250924
["timestamp","ask_amount","ask_price","bid_price","bid_amount"]
[1758677265828,0.72,215.81,215.78,50.07695849]
[1758677266912,0.72,215.81,215.79,4.63413503]
[1758677267105,0.72,215.81,215.79,40.77413503]
[1758677268522,26.72,215.81,215.79,40.77413503]
[1758677268701,26.0,215.81,215.79,42.2093679]
[1758677268907,26.0,215.81,215.79,42.9193679]
[1758677269123,26.0,215.81,215.79,56.85567896]
[1758677269495,26.0,215.81,215.8,0.71]
[1758677269699,26.0,215.81,215.8,1.43523287]
[1758677270497,26.0,215.81,215.8,2.14523287]
[1758677270715,26.0,215.81,215.8,42.89915316]
[1758677271021,26.0,215.81,215.8,56.12481684]
[1758677272627,26.0,215.81,215.8,56.83481684]
[1758677273331,26.0,215.81,215.8,20.71481684]
[1758677273511,26.0,215.81,215.8,56.83481684]
[1758677273811,26.0,215.81,215.8,42.89915316]
[1758677274117,134.62,215.84,215.8,54.4839539]
[1758677274118,133.9,215.84,215.8,54.4839539]
[1758677274820,133.9,215.84,215.82,1.43523287]
[1758677275015,0.69,215.87,215.83,0.71]
[1758677275220,0.1,215.88,215.85,1.43523287]
[1758677275428,0.1,215.88,215.85,37.55523287]
[1758677275631,0.1,215.88,215.85,38.26523287]
[1758677275851,0.1,215.88,215.87,1.43523287]
[1758677276039,0.1,215.88,215.87,37.55523287]
[1758677276328,0.1,215.88,215.87,42.18765052]
[1758677277028,0.1,215.88,215.79,13.59559401]
[1758677277327,0.1,215.88,215.86,1.43523287]
[1758677277536,0.1,215.88,215.87,36.12]
[1758677278021,0.1,215.88,215.87,36.83]
[1758677278611,0.1,215.88,215.87,42.98779532]
[1758677280209,0.1,215.88,215.87,43.69779532]
[1758677281918,0.1,215.88,215.87,6.86779532]
[1758677282112,0.1,215.88,215.87,42.98779532]
[1758677282509,0.1,215.88,215.86,4.63261035]
[1758677282716,0.79,215.88,215.86,40.75258388]
[1758677283124,0.1,215.88,215.86,40.75258388]
[1758677285120,0.1,215.88,215.87,2.94537767]
[1758677287214,0.1,215.88,215.87,7.57779532]
[1758677289338,0.1,216.05,215.92,13.59559401]
[1758677289644,0.1,216.05,216.04,2.23537767]
[1758677289829,0.79,216.05,216.03,36.1]
[1758677290030,0.79,216.05,216.02,2.23537767]
[1758677290238,0.69,216.04,216.01,36.1]
[1758677290567,26.0,216.02,215.97,36.1]
[1758677290855,0.69,216.01,215.97,36.1]
[1758677291042,0.69,216.0,215.88,0.71]
[1758677291229,26.0,215.97,215.91,6.86692741]
[1758677291425,0.69,215.96,215.91,6.86692741]
[1758677291628,0.69,215.95,215.91,6.86692741]
[1758677293042,30.62996438,215.99,215.91,6.86692741]
[1758677293242,0.7,215.94,215.91,6.86692741]
[1758677293437,0.7,215.96,215.91,18.44582602]
[1758677293745,0.1,216.05,215.95,2.23537767]
[1758677293931,0.1,216.05,216.01,2.23537767]
[1758677294125,0.7,216.04,216.01,2.23537767]
[1758677294325,0.7,216.03,216.01,2.23537767]
[1758677295049,0.1,216.05,216.02,4.62920099]
[1758677295341,0.8,216.05,216.02,4.62920099]
[1758677295871,0.1,216.05,216.03,2.23537767]
[1758677296031,0.7,216.04,216.03,2.23537767]
[1758677296220,0.1,216.05,216.02,4.62920099]
[1758677296425,0.1,216.05,216.03,2.23537767]
[1758677296827,0.8,216.05,216.03,2.23537767]
[1758677297245,0.8,216.05,216.03,6.86418662]
[1758677297552,0.1,216.05,216.03,6.86418662]
[1758677299147,0.1,216.05,216.03,4.62880895]
[1758677299330,0.1,216.05,216.02,2.23537767]
[1758677299531,0.1,216.05,216.02,42.98442835]
[1758677300054,0.1,216.05,216.02,43.64442835]
[1758677300935,0.1,216.05,216.02,42.98442835]
[1758677301155,0.1,216.05,216.02,43.67442835]
[1758677301527,0.1,216.05,216.02,53.01205317]
[1758677301729,0.1,216.05,216.03,2.92537767]
[1758677302682,0.1,216.05,216.04,4.62877244]
[1758677303940,0.1,216.05,216.04,5.31877244]
[1758677305139,0.1,216.05,216.04,40.74877244]
[1758677305342,0.1,216.05,216.04,4.62877244]
[1758677305566,0.1,216.05,216.04,40.74877244]
[1758677306467,0.1,216.05,215.99,23.14907624]
[1758677306468,0.76,216.05,216.0,4.62962962]
[1758677306646,0.66,216.04,216.0,20.52]
[1758677306968,0.66,216.03,216.0,20.52]
[1758677307538,26.66,216.03,215.99,36.12]
[1758677307859,26.0,216.03,215.99,36.12]
[1758677308176,0.66,216.02,215.99,36.12]
[1758677308355,0.66,216.02,215.99,40.74971203]
[1758677309672,0.76,216.05,215.99,41.43971203]
[1758677309871,0.76,216.05,215.99,53.01432196]
[1758677311169,0.1,216.05,216.0,2.92537767]
[1758677311363,0.1,216.05,216.01,0.69]
[1758677311664,0.1,216.05,216.0,2.23537767]
[1758677311665,0.66,216.04,216.0,36.1]
[1758677311958,0.1,216.05,216.01,0.69]
[1758677313074,0.1,216.05,216.02,4.62920099]
[1758677313250,0.76,216.05,216.02,4.62920099]
[1758677313657,26.76,216.05,216.02,4.62920099]
[1758677313956,0.1,216.05,216.03,0.69]
[1758677314360,0.1,216.05,216.04,0.69]
[1758677314969,0.1,216.05,216.02,16.89220348]
[1758677315265,0.1,216.05,216.03,36.1]
[1758677317076,0.1,216.05,216.04,4.62877244]
[1758677319351,0.1,216.05,216.03,4.62898671]
[1758677319557,3.08205433,216.15,216.04,0.69]
[1758677319764,3.08205433,216.15,216.06,2.23537767]
[1758677319963,29.08205433,216.15,216.07,0.69]
[1758677320163,29.08205433,216.15,216.08,36.1]
[1758677320453,2.42205433,216.15,216.09,0.69]
[1758677321449,2.42205433,216.15,216.1,16.19620545]
[1758677321754,3.08205433,216.15,216.1,4.62748727]
[1758677321970,0.66,216.15,216.11,36.1]
[1758677322680,0.66,216.14,216.11,36.1]
[1758677323404,5.89992581,216.19,216.11,40.72726544]
[1758677323405,26.66,216.17,216.11,40.72726544]
[1758677323671,26.66,216.16,216.11,40.72726544]
[1758677323876,0.66,216.15,216.11,40.72726544]
[1758677324081,0.66,216.14,216.11,36.1]
[1758677324480,0.66,216.14,216.1,40.76748727]
[1758677324880,26.0,216.16,216.1,40.76748727]
[1758677325091,0.66,216.13,216.04,5.31877244]
[1758677325263,0.66,216.13,216.07,36.12]
[1758677325784,0.66,216.13,216.08,4.62791558]
[1758677325991,0.66,216.12,216.08,4.62791558]
[1758677327381,0.66,216.12,216.07,36.12]
[1758677327579,0.66,216.12,216.07,40.74804334]
[1758677328770,0.66,216.12,216.07,41.43804334]
[1758677330870,0.66,216.12,216.07,40.74804334]
[1758677331077,28.92537767,216.16,216.08,0.72]
[1758677331484,0.69,216.16,216.08,0.72]
[1758677331687,26.0,216.15,216.08,0.72]
[1758677331868,26.0,216.14,216.08,0.72]
[1758677333193,26.0,216.14,216.09,16.19695497]
[1758677333406,26.0,216.14,216.1,0.72]
[1758677333893,0.69,216.13,216.07,40.74791977]
[1758677334104,26.0,216.14,216.08,0.72]
[1758677334498,26.0,216.15,216.08,0.72]
[1758677334982,26.0,216.14,216.08,0.72]
[1758677335378,26.0,216.14,216.09,16.19695497]
[1758677335677,0.69,216.16,216.1,0.72]
[1758677336184,26.0,216.15,216.1,0.72]
[1758677336382,26.69,216.15,216.1,0.72]
[1758677336593,5.89992581,216.19,216.11,0.72]
[1758677336799,26.0,216.16,216.11,0.72]
[1758677337001,26.69,216.16,216.11,0.72]
[1758677337168,26.0,216.16,216.12,0.72]
[1758677337375,2.92537767,216.19,216.13,0.72]
[1758677337776,26.0,216.16,216.13,0.72]
[1758677338212,6.69700176,216.19,216.13,0.72]
[1758677338213,0.69,216.18,216.13,0.72]
[1758677338495,0.69,216.2,216.14,0.72]
[1758677338898,26.69,216.2,216.14,0.72]
[1758677339290,26.0,216.21,216.15,16.19245894]
[1758677339489,26.0,216.19,216.15,5.34641684]
[1758677339690,0.69,216.18,216.15,4.62641684]
[1758677339897,26.0,216.19,216.15,16.91245894]
[1758677340098,26.69,216.21,216.15,16.91245894]
[1758677340403,0.69,216.2,216.15,5.34641684]
[1758677340583,0.69,216.22,216.16,0.72]
[1758677340791,26.0,216.21,216.16,0.72]
[1758677340982,0.69,216.2,216.15,40.72641684]
[1758677341295,0.69,216.19,216.15,0.72]
[1758677341603,0.69,216.19,216.15,36.84]
[1758677341800,29.62727225,216.21,216.14,16.19310078]
[1758677341983,0.69,216.18,216.14,52.31310078]
[1758677342413,0.69,216.18,216.14,4.62663088]
[1758677342611,0.69,216.17,216.12,4.62705904]
[1758677342912,0.69,216.16,216.12,4.62705904]
[1758677344109,0.69,216.16,216.12,5.34705904]
[1758677345104,4.62581636,216.18,216.09,0.72]
[1758677345105,0.69,216.15,216.09,0.72]
[1758677345283,0.69,216.15,216.1,36.12]
[1758677345490,6.05267978,216.18,216.1,36.12]
[1758677345708,0.69,216.14,216.1,36.12]
[1758677346088,0.69,216.14,216.1,36.84]
[1758677346289,0.69,216.14,216.1,41.46748727]
[1758677346499,2.11686342,216.16,216.1,5.34748727]
[1758677346691,2.11686342,216.16,216.07,25.48492789]
[1758677346692,1.42686342,216.14,216.07,13.91497948]
[1758677346986,0.69,216.13,216.08,4.11814523]
[1758677347305,0.69,216.15,216.09,4.11814523]
[1758677347484,0.69,216.15,216.09,0.72]
[1758677347910,0.69,216.15,216.1,4.62748727]
[1758677348112,0.69,216.14,216.1,4.62748727]
[1758677349911,0.69,216.14,216.09,0.72]
[1758677350090,0.69,216.14,216.1,3.39771633]
[1758677350684,0.69,216.13,216.09,0.72]
[1758677351116,0.69,216.15,216.09,0.72]
[1758677351596,2.11686342,216.15,216.09,0.72]
[1758677351795,2.11686342,216.15,216.1,4.62748727]
[1758677352094,0.69,216.14,216.1,4.62748727]
[1758677352509,0.69,216.14,216.1,5.34748727]
[1758677353311,0.69,216.14,216.1,4.62748727]
[1758677354815,0.69,216.14,216.1,0.66]
[1758677355718,0.69,216.14,216.11,4.62727314]
[1758677358824,0.69,216.14,216.1,4.62748727]
[1758677358996,0.69,216.14,216.11,3.4031295]
[1758677359201,0.69,216.14,216.1,5.28748727]
[1758677359415,0.69,216.14,216.11,3.40385195]
[1758677359613,0.69,216.14,216.1,4.62748727]
[1758677359614,0.68,216.14,216.1,5.28748727]
[1758677359816,1.42686342,216.15,216.11,3.40385348]
[1758677360023,2.10686342,216.15,216.1,5.28748727]
[1758677360205,2.10686342,216.15,216.11,3.40460086]
[1758677360397,2.10686342,216.15,216.11,0.7]
[1758677361121,2.10686342,216.15,216.12,8.03268243]
[1758677361310,2.10686342,216.15,216.12,4.62690185]
[1758677363226,2.10686342,216.15,216.13,3.40812067]
[1758677363521,2.14686342,216.15,216.1,5.32728261]
[1758677363700,2.14686342,216.15,216.11,3.40812649]
[1758677363897,0.72,216.14,216.12,3.40812649]
[1758677364200,1.42686342,216.13,216.08,4.627877]
[1758677364398,1.42686342,216.13,216.09,4.10996041]
[1758677364594,1.42686342,216.13,216.1,3.40996041]
[1758677364808,1.42686342,216.15,216.11,3.40996041]
[1758677365103,2.14686342,216.15,216.12,3.40996041]
[1758677365317,2.14686342,216.15,216.12,4.62705904]
[1758677365504,1.42686342,216.15,216.12,4.62705904]
[1758677365717,2.14686342,216.15,216.12,4.62705904]
[1758677366110,2.14686342,216.15,216.13,3.4105945]
[1758677366309,133.9,216.16,216.12,4.62705904]
[1758677366509,237.01940831,216.27,216.12,4.62705904]
[1758677366510,2.14686342,216.19,216.13,4.11066377]
[1758677366700,2.14686342,216.19,216.12,4.62705904]
[1758677366701,1.42686342,216.19,216.14,4.11066377]
[1758677366905,26.0,216.2,216.15,4.11066377]
[1758677367107,26.0,216.2,216.16,4.10904949]
[1758677367419,26.0,216.2,216.17,5.3259888]
[1758677367825,26.0,216.2,216.17,4.6259888]
[1758677368006,26.72,216.2,216.17,4.6259888]
[1758677368198,26.72,216.2,216.16,4.62620281]
[1758677369612,26.61016286,216.2,216.16,4.62620281]
[1758677369801,26.61016286,216.2,216.16,5.32620281]
[1758677370403,26.61016286,216.2,216.16,4.62620281]
[1758677370619,0.72,216.19,216.16,4.62620281]
[1758677371603,0.72,216.19,216.15,4.62641684]
[1758677371803,0.72,216.19,216.15,5.32641684]
[1758677372018,25.89016286,216.2,216.15,5.32641684]
[1758677372328,26.61016286,216.2,216.15,5.32641684]
[1758677373519,25.89016286,216.2,216.15,5.32641684]
[1758677373715,0.72,216.19,216.15,4.62641684]
[1758677373918,0.72,216.18,216.15,4.62641684]
[1758677374121,0.72,216.17,216.13,4.62684495]
[1758677374314,0.72,216.16,216.14,3.40800465]
[1758677374623,0.72,216.16,216.15,3.40800465]
[1758677375013,0.72,216.16,216.12,4.62701587]
[1758677375216,0.72,216.15,216.13,3.40864009]
[1758677375418,0.72,216.15,216.14,3.40864009]
[1758677376220,26.72,216.18,216.14,8.03523165]
[1758677376413,26.0,216.18,216.15,3.40864009]
[1758677376608,0.72,216.17,216.14,4.62659156]
[1758677376929,26.0,216.18,216.14,4.62659156]
[1758677377128,0.72,216.16,216.12,4.62701476]
[1758677377308,0.72,216.15,216.13,3.40936888]
[1758677377502,0.72,216.15,216.07,11.56757498]
[1758677377503,1.42686342,216.15,216.1,4.62728909]
[1758677377710,1.42686342,216.15,216.11,3.41020295]
[1758677378010,0.72,216.14,216.08,0.7]
[1758677378834,0.72,216.14,216.08,16.89770454]
[1758677381830,0.72,216.14,216.08,16.19770454]
[1758677382038,0.72,216.14,216.09,0.7]
[1758677382223,0.72,216.14,216.1,0.7]
[1758677382940,0.72,216.14,216.11,4.62727314]
[1758677383455,0.72,216.13,216.09,4.62749272]
[1758677384138,0.72,216.12,216.06,4.62832494]
[1758677384316,0.72,216.12,216.07,0.7]
[1758677384518,0.72,216.12,216.08,0.7]
[1758677385325,26.0,216.14,216.09,5.32770142]
[1758677385527,1.42686342,216.15,216.09,5.32770142]
[1758677385528,1.42686342,216.15,216.1,0.7]
[1758677385843,2.14686342,216.15,216.1,0.7]
[1758677386233,1.42686342,216.15,216.1,0.7]
[1758677386415,0.72,216.14,216.1,0.7]
[1758677386816,0.72,216.14,216.11,4.62727314]
[1758677387548,2.14686342,216.13,216.0,0.7]
[1758677387711,1.42686342,216.01,215.93,6.86]
[1758677388038,27.42686342,216.05,215.99,0.7]
[1758677388220,1.89888676,216.04,215.99,0.7]
[1758677388420,26.0,216.05,215.99,0.7]
[1758677388614,1.89888697,216.04,215.99,0.7]
[1758677388824,26.0,216.05,216.0,16.20370369]
[1758677389016,26.0,216.05,216.01,0.7]
[1758677390330,27.42686342,216.06,216.02,4.62920099]
[1758677390638,0.67,216.05,216.02,4.62920099]
[1758677391740,0.67,216.05,216.0,16.20370369]
[1758677392046,0.67,216.05,216.0,16.88370369]
[1758677392719,1.42686342,216.06,216.01,0.68]
[1758677392919,26.0,216.07,216.01,0.68]
[1758677393336,28.09686342,216.08,216.01,0.68]
[1758677393536,2.09686342,216.08,216.01,0.68]
[1758677394032,2.09686342,216.08,216.02,16.20220348]
[1758677394339,26.0,216.09,216.02,4.62920099]
[1758677394340,1.42686342,216.06,216.02,4.62920099]
[1758677394530,0.67,216.05,216.02,4.62920099]
[1758677395634,0.67,216.05,216.0,16.20370369]
[1758677395832,2.09686342,216.07,216.0,16.88370369]
[1758677397351,0.67,216.07,216.01,0.68]
[1758677397728,26.0,216.09,216.01,0.68]
[1758677398121,26.0,216.09,216.01,14.59885308]
[1758677398328,0.67,216.13,216.04,1.42686342]
[1758677398534,0.67,216.13,216.05,36.76]
[1758677398749,0.67,216.13,216.06,0.68]
[1758677399334,0.67,216.13,216.07,16.1984542]
[1758677399651,0.67,216.12,216.07,4.62812977]
[1758677399850,1.42686342,216.11,216.05,4.62837856]
[1758677400153,1.42686342,216.09,216.04,4.6286588]
[1758677400325,0.67,216.08,216.04,4.6286588]
[1758677401327,26.67,216.11,216.05,0.68]
[1758677401742,0.67,216.11,216.05,0.68]
[1758677401944,0.67,216.11,216.03,37.54686342]
[1758677402146,0.67,216.1,216.03,36.12]
[1758677402342,0.67,216.09,216.03,36.12]
[1758677402548,27.42686342,216.11,216.04,0.68]
[1758677402549,26.67,216.11,216.04,0.68]
[1758677403745,26.67,216.12,216.05,4.6285582]
[1758677404056,26.67,216.12,216.05,5.3085582]
[1758677404831,26.67,216.12,216.05,16.87995371]
[1758677405342,0.67,216.12,216.05,16.87995371]
[1758677405651,0.67,216.15,216.08,2.23189146]
[1758677405852,0.67,216.15,216.09,0.68]
[1758677406159,2.23189146,216.12,216.05,16.19995371]
[1758677406337,0.67,216.11,216.05,16.19995371]
[1758677406538,0.67,216.1,216.05,16.19995371]
[1758677406739,0.67,216.09,216.05,16.19995371]
[1758677406937,2.23189146,216.12,216.05,16.19995371]
[1758677407146,0.67,216.11,216.05,16.19995371]
[1758677407354,26.67,216.11,216.05,11.57139551]
[1758677407853,26.67,216.11,216.04,4.62877244]
[1758677407854,2.90189146,216.1,216.04,4.62877244]
[1758677408047,2.23189146,216.08,216.0,0.68]
[1758677408250,2.23189146,216.06,215.97,0.68]
[1758677408442,2.23189146,216.04,215.96,4.63048712]
[1758677408757,2.23189146,216.02,215.99,13.92014477]
[1758677408954,2.23189146,216.02,215.96,4.63048712]
[1758677409257,0.67,216.01,215.96,4.63048712]
[1758677409460,2.23189146,216.02,215.93,16.88856114]
[1758677409461,0.67,216.0,215.93,16.88856114]
[1758677409845,26.67,215.99,215.93,16.88856114]
[1758677410364,0.67,215.99,215.93,16.88856114]
[1758677410733,26.67,215.99,215.93,16.88856114]
[1758677411447,26.0,215.96,215.87,37.54]
[1758677411758,0.67,215.95,215.88,53.09271075]
[1758677412556,26.0,215.96,215.88,52.41271075]
[1758677412557,0.67,215.94,215.88,52.41271075]
[1758677413350,26.67,215.94,215.88,52.41271075]
[1758677413945,0.71,215.93,215.88,40.83220307]
[1758677414146,26.71,215.92,215.88,4.63220307]
[1758677414333,26.0,215.92,215.88,5.31220307]
[1758677414536,2.23189146,215.93,215.88,5.31220307]
[1758677414737,2.94189146,215.97,215.89,0.68]
[1758677414952,26.0,215.96,215.88,16.21271075]
[1758677415161,2.94189146,215.95,215.88,16.21271075]
[1758677415353,0.71,215.94,215.88,11.58050768]
[1758677415545,2.23189146,215.93,215.87,4.63241765]
[1758677415862,2.23189146,215.91,215.86,4.83263039]
[1758677416170,2.23189146,215.89,215.86,0.2]
[1758677416554,0.71,215.88,215.86,4.83248563]
[1758677416740,2.23189146,215.9,215.86,4.83248563]
[1758677417060,0.71,215.89,215.86,4.83248563]
[1758677417271,0.71,215.89,215.86,0.2]
[1758677417448,2.94189146,215.88,215.86,0.2]
[1758677417651,28.94189146,215.88,215.86,0.2]
[1758677417852,26.71,215.87,215.86,0.2]
[1758677418545,0.71,215.87,215.86,0.2]
[1758677418753,28.23189146,215.89,215.86,4.83263226]
[1758677419469,26.0,215.9,215.86,16.41421291]
[1758677419644,26.0,215.9,215.87,0.68]
[1758677419847,2.94189146,215.93,215.87,0.68]
[1758677420072,28.94189146,215.93,215.87,0.68]
[1758677420281,26.0,215.92,215.86,16.41421291]
[1758677420459,26.68,215.92,215.86,16.41421291]
[1758677420986,0.68,215.92,215.86,16.41421291]
[1758677421161,2.91189146,215.91,215.86,16.41421291]
[1758677421571,0.68,215.9,215.86,16.41421291]
[1758677421774,0.68,215.95,215.87,0.68]
[1758677421965,2.23189146,215.94,215.87,0.68]
[1758677422165,2.91189146,215.94,215.87,0.68]
[1758677422776,2.23189146,215.92,215.86,16.41421291]
[1758677423075,2.23189146,215.92,215.86,17.09421291]
[1758677424058,2.23189146,215.92,215.86,4.83263226]
[1758677424256,2.23189146,215.9,215.86,4.83263226]
[1758677424478,28.91189146,215.9,215.86,4.83263226]
[1758677424675,28.23189146,215.9,215.86,4.83263226]
[1758677425276,0.68,215.89,215.86,4.83263226]
[1758677425478,2.91189146,215.88,215.86,0.2]
[1758677425987,0.68,215.87,215.86,0.2]
[1758677426285,0.68,215.94,215.87,0.68]
[1758677426464,28.23189146,215.94,215.87,0.68]
[1758677427073,28.23189146,215.94,215.88,4.63220307]
[1758677427074,28.91189146,215.94,215.88,4.63220307]
[1758677427273,0.68,215.93,215.88,4.63220307]
[1758677427580,28.23189146,215.94,215.88,16.21271075]
[1758677427581,2.23189146,215.94,215.88,16.21271075]
[1758677427779,2.23189146,215.96,215.89,0.68]
[1758677428883,26.68,215.97,215.9,16.21120888]
[1758677428884,0.68,215.97,215.9,16.21120888]
[1758677429077,2.23189146,215.98,215.91,0.68]
[1758677429386,26.0,215.97,215.91,0.68]
[1758677431183,2.91189146,215.98,215.92,16.20970729]
[1758677431557,0.68,215.97,215.92,16.20970729]
[1758677431760,0.68,215.96,215.92,16.20970729]
[1758677432384,26.0,215.97,215.92,16.20970729]
[1758677432583,2.91189146,215.98,215.93,0.68]
[1758677432881,26.68,215.97,215.92,4.63134494]
[1758677433068,2.91189146,215.96,215.92,4.63134494]
[1758677433275,0.68,215.95,215.89,12.25961274]
[1758677434184,2.91189146,215.94,215.88,4.63220307]
[1758677434381,0.68,215.93,215.88,4.63220307]
[1758677434573,0.68,215.92,215.88,4.63220307]
[1758677435579,0.68,215.92,215.88,5.31220307]
[1758677435988,2.23189146,215.94,215.88,16.89271075]
[1758677437066,2.23189146,215.94,215.89,0.68]
[1758677438012,2.91189146,215.94,215.9,16.21120888]
[1758677438369,28.91189146,215.94,215.9,4.63177396]
[1758677438697,0.68,215.93,215.9,4.63177396]
[1758677439194,0.68,215.92,215.9,4.63177396]
[1758677439508,26.68,215.92,215.88,4.63220307]
[1758677440294,26.68,215.92,215.87,16.21304421]
[1758677440295,0.68,215.92,215.87,16.21304421]
[1758677440496,0.68,215.91,215.87,16.21304421]
[1758677440701,26.0,215.92,215.87,16.89304421]
[1758677440864,0.68,215.92,215.87,16.89304421]
[1758677441066,26.68,215.92,215.87,16.89304421]
[1758677441269,26.68,215.91,215.87,16.21304421]
[1758677441481,28.91189146,215.91,215.87,16.21304421]
[1758677441670,2.23189146,215.88,215.86,0.2]
[1758677442067,0.68,215.87,215.86,0.2]
[1758677443588,2.23189146,215.9,215.86,5.51263226]
[1758677443973,2.91189146,215.9,215.86,4.83263226]
[1758677444174,0.68,215.89,215.86,4.83263226]
[1758677444800,26.68,215.89,215.86,4.83263226]
[1758677444980,2.91189146,215.88,215.86,0.2]
[1758677445395,0.68,215.87,215.86,0.2]
[1758677445697,2.23189146,215.88,215.86,4.83263226]
[1758677445880,2.23189146,215.88,215.86,0.2]
[1758677446080,0.68,215.87,215.86,0.2]
[1758677448287,18.90801166,215.87,215.86,0.2]
[1758677448972,2.23189146,215.87,215.86,0.2]
[1758677449603,2.91189146,215.87,215.86,0.2]
[1758677450781,7.54430911,215.87,215.86,0.2]
[1758677451504,57.41990312,215.87,215.86,0.2]
[1758677453190,52.76748547,215.87,215.86,0.2]
[1758677453396,55.16801166,215.87,215.86,0.2]
[1758677453610,57.39990312,215.87,215.86,0.2]
[1758677453908,39.59559401,215.84,215.83,0.2]
[1758677454106,41.82748547,215.84,215.83,0.2]
[1758677454289,42.52748547,215.84,215.83,0.2]
[1758677454892,47.16054699,215.84,215.83,0.2]
[1758677455299,83.46054699,215.84,215.83,0.2]
[1758677457712,64.51189146,215.84,215.83,0.2]
[1758677458001,28.23189146,215.84,215.83,0.2]
[1758677458688,28.93189146,215.84,215.83,0.2]
[1758677459089,28.23189146,215.84,215.83,0.2]
[1758677460810,2.23189146,215.84,215.83,0.9]
[1758677460997,2.23189146,215.84,215.83,5.53327618]
[1758677462606,26.0,215.86,215.83,5.53327618]
[1758677462607,1.43195607,215.85,215.83,5.53327618]
[1758677462797,26.0,215.86,215.84,0.7]
[1758677463108,1.43195607,215.86,215.85,5.33284688]
[1758677463696,1.43195607,215.88,215.85,5.33284688]
[1758677463891,26.0,215.87,215.86,0.7]
[1758677465506,26.7,215.87,215.83,0.2]
[1758677465810,1.43195607,215.84,215.83,0.9]
[1758677466606,1.43195607,215.84,215.83,0.2]
[1758677467911,15.72755008,215.84,215.83,0.2]
[1758677468205,0.7,215.84,215.83,0.2]
[1758677468405,38.43195607,215.84,215.83,0.2]
[1758677468812,52.02755008,215.84,215.83,0.2]
[1758677468985,52.02755008,215.84,215.73,11.58832324]
[1758677468986,52.02755008,215.84,215.73,0.7]
[1758677469191,1.43195607,215.75,215.71,0.7]
[1758677469399,1.43195607,215.75,215.72,0.7]
[1758677469802,1.43195607,215.75,215.72,5.33562482]
[1758677470186,1.43195607,215.75,215.72,0.7]
[1758677470387,1.43195607,215.73,215.7,4.63586204]
[1758677470597,1.43195607,215.73,215.67,0.2]
[1758677470796,1.43195607,215.73,215.67,5.53652021]
[1758677471068,1.43195607,215.73,215.67,4.83652021]
[1758677471197,1.43195607,215.73,215.68,0.7]
[1758677471400,26.0,215.75,215.67,4.83652021]
[1758677471401,1.43195607,215.69,215.67,0.2]
[1758677473514,1.43195607,215.69,215.67,4.83662681]
[1758677473709,1.43195607,215.69,215.67,0.2]
[1758677474393,1.43195607,215.69,215.67,4.8365937]
[1758677475009,1.43195607,215.69,215.67,0.2]
[1758677475222,1.43450855,215.68,215.67,0.2]
[1758677475528,2.10450855,215.68,215.67,0.2]
[1758677476543,15.70010256,215.68,215.67,0.2]
[1758677476907,20.33660107,215.68,215.67,0.2]
[1758677479341,21.77110962,215.68,215.67,0.2]
[1758677480347,15.03010256,215.68,215.67,0.2]
[1758677480939,27.43450855,215.68,215.67,0.2]
[1758677482235,26.0,215.7,215.67,0.2]
[1758677482426,27.43450855,215.68,215.67,0.2]
[1758677483833,26.0,215.69,215.67,5.54671349]
[1758677484026,1.43450855,215.68,215.67,5.54671349]
[1758677484430,1.43450855,215.68,215.67,0.91]
[1758677485040,1.43450855,215.68,215.67,5.54671349]
[1758677486238,1.43450855,215.72,215.67,17.13849723]
[1758677486441,1.43450855,215.72,215.68,0.71]
[1758677486641,1.43450855,215.72,215.69,0.71]